Workbook

Sheet input
B4: Conic constant K | D4: -1.00 | G4: ImageJ input | H4: Mask | K4: SIT CAMERA and TEST STAGE SETTINGS | M4: Lonnie Robinson | N4: Bill Thomas | O4: Jeff Baldwin | P4: Loaner Tester | R4: Bill Thomas
B5: Mask hole size | D5: 0.75 | S5: `
B6: Mirror Dia | D6: 20.000 | G6: 53.94700 | H6: =mask!C31 -> 0 | I6: =mask!D31 -> 0.000 | M6: Olympus E300 | N6: Olympus E300 | O6: Cannon 3ti EOS Rebel | P6: Olympus E300 | R6: Cannon t6
B7: ROC | D7: 155.220 | G7: 241.13200 | H7: =mask!C32 -> 1 | I7: =mask!D32 -> 1.366 | K7: Slit to Image Plane | M7: 3.261 | N7: 3.200 | O7: 3.309 | P7: 3.200 | R7: 3.479
B8: chamfer inch | D8: 0.066 | G8: 444.50400 | H8: =mask!C33 -> 2 | I8: =mask!D33 -> 2.731 | K8: Pixels/inch | M8: 4771 | N8: 4771 | O8: 5905 | P8: 4771 | R8: 5905
B9: Slit to Image Plane | D9: 3.200 | G9: 661.59500 | H9: =mask!C34 -> 3 | I9: =mask!D34 -> 4.097 | K9: Max Horizontal Pixels | M9: 3264 | N9: 3264 | O9: 5148 | P9: 3264 | R9: 5148
B10: K=Pixels/inch | D10: 4771 | G10: 893.00100 | H10: =mask!C35 -> 4 | I10: =mask!D35 -> 5.462
B11: Max Horizontal Pixels | D11: 3264 | G11: 1135.66700 | H11: =mask!C36 -> 5 | I11: =mask!D36 -> 6.828
G12: 1379.48300 | H12: =mask!C37 -> 6 | I12: =mask!D37 -> 8.193
A13: Warning close all other Excels before running MACRO! | G13: 1630.38270 | H13: =mask!C38 -> 7 | I13: =mask!D38 -> 9.559 | J13: Zones | K13: h | L13: FigureXp | M13: Foucaults | N13: prior Foucaults | O13: =ccd!S22 -> ML | P13: =ccd!T22 -> ML Prior | R13: Perfect Foucault Conic
A14: control c MACRO to compute Mask Parallax & Foucaults | G14: 1879.72000 | H14: =mask!C39 -> 8 | I14: =mask!D39 -> 10.925 | J14: =ccd!B7 -> 13.8% | K14: =ccd!C7 -> 1.369 | L14: =ccd!O23 -> 0.0000 | N14: =ccd!K23 -> 0.0051 | O14: =ccd!S23 -> -0.0032 | P14: =ccd!T23 -> -0.0032 | R14: =ccd!D7 -> 0.0060
G15: 2127.62200 | H15: =mask!C40 -> 9 | I15: =mask!D40 -> 12.290 | J15: =ccd!B8 -> 27.5% | K15: =ccd!C8 -> 2.736 | L15: =ccd!O24 -> 0.0237 | M15: =ccd!J24 -> 0.0288 | N15: =ccd!K24 -> 0.0288 | O15: =ccd!S24 -> 0.0024 | P15: =ccd!T24 -> 0.0024 | R15: =ccd!D8 -> 0.0241
G16: 2367.49300 | H16: =mask!C41 -> 10 | I16: =mask!D41 -> 13.656 | J16: =ccd!B9 -> 41.3% | K16: =ccd!C9 -> 4.104 | L16: =ccd!O25 -> 0.0498 | M16: =ccd!J25 -> 0.0549 | N16: =ccd!K25 -> 0.0549 | O16: =ccd!S25 -> -0.0016 | P16: =ccd!T25 -> -0.0016 | R16: =ccd!D9 -> 0.0543
G17: 2598.45200 | H17: =mask!C42 -> 11 | I17: =mask!D42 -> 15.021 | J17: =ccd!B10 -> 55.1% | K17: =ccd!C10 -> 5.470 | L17: =ccd!O26 -> 0.0916 | M17: =ccd!J26 -> 0.0967 | N17: =ccd!K26 -> 0.0967 | O17: =ccd!S26 -> -0.0020 | P17: =ccd!T26 -> -0.0020 | R17: =ccd!D10 -> 0.0964
A18: =IF(ABS(ccd!G13)>=7,"sheet ccd! mask alignment error"," ") ->  | G18: 2817.29100 | H18: =mask!C43 -> 12 | I18: =mask!D43 -> 16.387 | J18: =ccd!B11 -> 68.8% | K18: =ccd!C11 -> 6.835 | L18: =ccd!O27 -> 0.1477 | M18: =ccd!J27 -> 0.1528 | N18: =ccd!K27 -> 0.1528 | O18: =ccd!S27 -> 0.0000 | P18: =ccd!T27 -> 0.0000 | R18: =ccd!D11 -> 0.1505
A19: =IF(crossover!M14>0,crossover!M14," ") ->  | B19: =IF(crossover!M14>0,"Ray Crossover error", " ") ->  | G19: 3020.93900 | H19: =mask!C44 -> 13 | I19: =mask!D44 -> 17.752 | J19: =ccd!B12 -> 82.5% | K19: =ccd!C12 -> 8.198 | L19: =ccd!O28 -> 0.2126 | M19: =ccd!J28 -> 0.2177 | N19: =ccd!K28 -> 0.2177 | O19: =ccd!S28 -> -0.0011 | P19: =ccd!T28 -> -0.0011 | R19: =ccd!D12 -> 0.2165
G20: 3204.51200 | H20: =mask!C45 -> 14 | I20: =mask!D45 -> 19.118 | J20: =ccd!B13 -> 96.2% | K20: =ccd!C13 -> 9.560 | L20: =ccd!O29 -> 0.2893 | M20: =ccd!J29 -> 0.2944 | N20: =ccd!K29 -> 0.2944 | O20: =ccd!S29 -> -0.0023 | P20: =ccd!T29 -> -0.0023 | R20: =ccd!D13 -> 0.2944
C21: ML pivot zone | E21: 5.5
C22: ML up/down bias | E22: 0.000

Sheet mask
B3: Mask hole size | C3: =input!D5 -> 0.75
B4: Mirror Dia | C4: =input!D6 -> 20.000
B5: ROC | C5: =input!D7 -> 155.2200
B6: chamfer inches | C6: =input!D8 -> 0.0660
B7: K | C7: =input!D4 -> -1.000
B8: Mask number of zones | C8: 7
B9: Mask one turn | C9: 0.05
B10: Mask edge | C10: =C4/2-C6 -> 9.934
B11: Mask edge hole | C11: =C10-C3/2 -> 9.559
B12: Mask hole spacing | C12: =C11/C8 -> 1.3656
B13: Mask Sagitta - S | C13: =C10^2/$C$5/(1+SQRT(1-($C$7+1)*C10^2/$C$5^2)) -> 0.31789
B14: between holes | C14: =C12-C3 -> 0.616
B15: ROC-Sagitta | C15: =C5-C13 -> 154.902
B16: optical dia | C16: =C10*2 -> 19.868
E17: 2 stage approximation
B18: Zones | D18: t mask | E18: h | F18: h1 | G18: z=f(h1) | H18: z=f(t) | I18: z'=f(t)
B19: 0 | C19: =D19/$C$10 -> 0.0% | D19: 0.0000
B20: =B19+1 -> 1 | C20: =E20/$C$10 -> 13.8% | D20: =D32 -> 1.3660 | E20: =I20*$C$13-G20*I20+D20 -> 1.3687 | F20: =I20*$C$13-H20*I20+D20 -> 1.36874 | G20: =F20^2/$C$5/(1+SQRT(1-($C$7+1)*F20^2/$C$5^2)) -> 0.00603 | H20: =D20^2/$C$5/(1+SQRT(1-($C$7+1)*D20^2/$C$5^2)) -> 0.00601 | I20: =D20/($C$5-J20*(1+$C$7)) -> 0.00880
B21: 2 | C21: =E21/$C$10 -> 27.5% | D21: =D33 -> 2.7310 | E21: =I21*$C$13-G21*I21+D21 -> 2.7362 | F21: =I21*$C$13-H21*I21+D21 -> 2.73617 | G21: =F21^2/$C$5/(1+SQRT(1-($C$7+1)*F21^2/$C$5^2)) -> 0.02412 | H21: =D21^2/$C$5/(1+SQRT(1-($C$7+1)*D21^2/$C$5^2)) -> 0.02403 | I21: =D21/($C$5-J21*(1+$C$7)) -> 0.01759
B22: 3 | C22: 41.3% | D22: 4.0970 | E22: =I22*$C$13-G22*I22+D22 -> 4.1040 | F22: 4.10396 | G22: 0.05425 | H22: 0.05407 | I22: 0.02639
B23: 4 | C23: 55.1% | D23: 5.4620 | E23: 5.4698 | F23: 5.46980 | G23: 0.09638 | H23: 0.09610 | I23: 0.03519
B24: 5 | C24: 68.8% | D24: 6.8280 | E24: 6.8354 | F24: 6.83538 | G24: 0.15050 | H24: 0.15018 | I24: 0.04399
B25: 6 | C25: 82.5% | D25: 8.1930 | E25: 8.1984 | F25: 8.19837 | G25: 0.21651 | H25: 0.21623 | I25: 0.05278
B26: 7 | C26: 96.2% | D26: 9.5590 | E26: 9.5604 | F26: 9.56045 | G26: 0.29443 | H26: 0.29434 | I26: 0.06158
C27: 100.0% | D27: =C10 -> 9.9340 | E27: =D27 -> 9.9340
D30: rounded 3 places
B31: left | C31: 0 | D31: =ROUND($C$12*C31,3) -> 0.000
C32: =C31+1 -> 1 | D32: 1.366
C33: 2 | D33: 2.731
C34: 3 | D34: 4.097
C35: 4 | D35: 5.462
C36: 5 | D36: 6.828
C37: 6 | D37: 8.193
B38: center | C38: 7 | D38: 9.559
C39: 8 | D39: 10.925
C40: 9 | D40: 12.290
C41: 10 | D41: 13.656
C42: 11 | D42: 15.021
C43: 12 | D43: 16.387
C44: 13 | D44: 17.752
B45: right | C45: 14 | D45: 19.118
D46: =D45+$C$3 -> 19.868

Sheet ccd
B3: Diameter | C3: R | D3: 2R | E3: max pixel width | F3: width pixel center | G3: Slit to Image Plane | H3: ImagJ input | K3: k=pixels/ inch | L3: K | M3: Airy disk
B4: =mask!C16 -> 19.868 | C4: =mask!C5 -> 155.2200 | D4: =C4*2 -> 310.44 | E4: =input!D11 -> 3264 | F4: =E4/2 -> 1632 | G4: =input!D9 -> 3.2000 | H4: =input!G6 -> 53.9470 | K4: =input!D10 -> 4771 | L4: =input!D4 -> -1 | M4: =1.22*0.00054864/25.4*$C$4/2/$B$4 -> 0.0001029
B5: zones % | C5: h | D5: Z Foucault Moving | E5: z (slump) | H5: =input!G7 -> 241.1320 | I5: Sixtests Ym | J5: Sixtests source distance w/t l | K5: Sixtests offset X | L5: upper bonds | M5: lower bonds | N5: outside bonds +/-
B6: =C6/($B$4/2) -> 0.0% | C6: 0.00000 | D6: 0.0000 | G6: diff | H6: =input!G8 -> 444.5040 | P6: delta
B7: 13.8% | C7: =mask!E20 -> 1.368744 | D7: =-$L$4*C7^2/$C$4/(1+SQRT(1-(1+$L$4)*C7^2/$C$4^2)) -> 0.0060 | E7: =C7^2/$C$4/(1+SQRT(1-(1+$L$4)*C7^2/$C$4^2)) -> 0.0060349 | G7: =$G$14*2-H10-H12 -> 1.5624 | H7: =input!G9 -> 661.5950 | I7: =(H10-H12)/2/$K$4 -> -0.0524248 | J7: =C4+F21 -> 156.583784 | K7: =E21 -> 4.56378413 | L7: =D7+P7 -> 0.0294 | M7: =D7-P7 -> -0.0173 | N7: =IF(J23-L7>0,J23-L7,IF(J23-M7<0,J23-M7,"ok")) -> ok | O7: =J23-D7 -> -0.0009 | P7: =2*$M$4*$C$4/C7 -> 0.02335
B8: 27.5% | C8: =mask!E21 -> 2.736169 | D8: 0.0241 | E8: =C8^2/$C$4/(1+SQRT(1-(1+$L$4)*C8^2/$C$4^2)) -> 0.0241162 | G8: =$G$14*2-H9-H13 -> -2.5236 | H8: =input!G10 -> 893.0010 | I8: =(H9-H13)/2/$K$4 -> -0.1039567 | L8: 0.0358 | M8: 0.0124 | N8: =IF(J24-L8>0,J24-L8,IF(J24-M8<0,J24-M8,"ok")) -> ok | O8: =J24-D8 -> 0.0046 | P8: 0.01168
B9: 41.3% | C9: =mask!E22 -> 4.103959 | D9: 0.0543 | E9: 0.0542536 | G9: =$G$14*2-H8-H14 -> 0.2714 | H9: =input!G11 -> 1135.6670 | I9: =(H8-H14)/2/$K$4 -> -0.1545265 | L9: 0.0620 | M9: 0.0465 | N9: ok | O9: 0.0007 | P9: 0.00779
B10: 55.1% | C10: =mask!E23 -> 5.469795 | D10: 0.0964 | E10: 0.0963750 | G10: =$G$14*2-H7-H15 -> 0.7184 | H10: =input!G12 -> 1379.4830 | I10: =(H7-H15)/2/$K$4 -> -0.2029823 | L10: 0.1022 | M10: 0.0905 | N10: ok | O10: 0.0003 | P10: 0.00584
B11: 68.8% | C11: =mask!E24 -> 6.835363 | D11: 0.1505 | E11: 0.1505031 | G11: =$G$14*2-H6-H16 -> -1.0296 | H11: =input!G13 -> 1630.3827 | I11: =(H6-H16)/2/$K$4 -> -0.2486677 | L11: 0.1552 | M11: 0.1458 | N11: ok | O11: 0.0023 | P11: 0.00468
B12: 82.5% | C12: =mask!E25 -> 8.198351 | D12: 0.2165 | E12: 0.2165087 | G12: =$G$14*2-H5-H17 -> -1.3056 | H12: =input!G14 -> 1879.7200 | I12: =(H5-H17)/2/$K$4 -> -0.2913233 | L12: 0.2204 | M12: 0.2126 | N12: ok | O12: 0.0012 | P12: 0.00390
B13: 96.2% | C13: =mask!E26 -> 9.560445 | D13: 0.2944 | E13: 0.2944276 | G13: =$G$14*2-H4-H18 -> 2.3064 | H13: =input!G15 -> 2127.6220 | I13: =(H4-H18)/2/$K$4 -> -0.3301787 | L13: 0.2978 | M13: 0.2911 | N13: ok | O13: 0.0000 | P13: 0.00334
B14: 100.0% | C14: =mask!E27 -> 9.934000 | D14: 0.31789 | E14: =SUM(G7:G13) -> -0.0000 | F14: 0.00 | G14: =H11+F14 -> 1630.38 | H14: =input!G16 -> 2367.4930
H15: =input!G17 -> 2598.4520
H16: =input!G18 -> 2817.2910 | J16: =IF(ABS(G13)>=7,"Possible mask alignment error","mask alignment OK") -> mask alignment OK
H17: =input!G19 -> 3020.9390
H18: =input!G20 -> 3204.5120
E20: q w/t n | F20: varying l to solve | G20: solver zero Fig-2: 14 | P20: ML relative | Q20: =IF(INT(input!E21)<1,1,IF(INT(input!E21)>7,7,input!E21)) -> 5.5 | S20: D_rel-I_rel
E21: =F21+$G$4 -> 4.56378 | F21: 1.36378 | G21: =$I$13-H29 -> 5.440E-15 | P21: ML adj | Q21: =input!E22 -> 0 | S21: =INDEX($D$7:$D$13,$Q$20)-INDEX($J$23:$J$29,$Q$20) -> -0.00227 | T21: =INDEX($D$7:$D$13,$Q$20)-INDEX($K$23:$K$29,$Q$20) -> -0.00227
B22: varying z to solve | C22: z' Fig-4 | D22: e Fig-1: 2 | E22: c Fig-1: 7 | F22: N Fig-1: 8 | G22: Yn Fig-1: 9 | H22: Yz Fig_2: 12 | I22: solver zero Fig-2: 14 | J22: Z Foucault cntr f Fig-4 | K22: prior Z | M22: Zones | N22: h | O22: FigureXp | P22: Zones | Q22: lower | R22: upper | S22: ML | T22: ML Prior
B23: 0.0051013 | C23: =C7/($C$4-B23*(1+$L$4)) -> 0.00882 | D23: =-($F$21+$C$4)*C23+B23*C23+C7 -> -0.0119809918 | E23: =-D23*C23/(1+C23^2) -> 0.0001056 | F23: =$F$21-2*E23+$C$4 -> 156.5835728 | G23: =-2*E23/C23 -> -0.0239601205 | H23: =G23-(C7-G23)*($E$21-F23+$C$4)/(F23-B23) -> -0.0524248 | I23: =H23-I7 -> -1.624E-15 | J23: =(C7-C23*$C$4+B23*C23)/C23 -> 0.0051 | K23: 0.0051 | M23: =B7 -> 13.8% | N23: 1.369 | O23: =J23-$J$23 -> 0.000 | P23: =B7 -> 13.8% | Q23: =-P7 -> -0.02335 | R23: =P7 -> 0.02335 | S23: =J23-D7+$S$21+$Q$21 -> -0.0032 | T23: =K23-D7+$T$21+$Q$21 -> -0.0032
B24: 0.0287539 | C24: 0.01763 | D24: -0.02353348702 | E24: 0.0004147 | F24: 156.5829547 | G24: -0.04705235323 | H24: -0.1039567 | I24: 9.535E-09 | J24: =(C8-C24*$C$4+B24*C24)/C24 -> 0.0288 | K24: 0.0288 | M24: 27.5% | N24: 2.736 | O24: =J24-$J$23 -> 0.024 | P24: 27.5% | Q24: -0.01168 | R24: 0.01168 | S24: =J24-D8+$S$21+$Q$21 -> 0.0024 | T24: =K24-D8+$T$21+$Q$21 -> 0.0024
B25: 0.0549186 | C25: 0.02644 | D25: -0.03460591361 | E25: 0.0009143 | F25: 156.5819555 | G25: -0.06916347824 | H25: -0.1545265 | I25: 9.895E-09 | J25: 0.0549 | K25: 0.0549 | M25: 41.3% | N25: 4.104 | O25: 0.050 | P25: 41.3% | Q25: -0.00779 | R25: 0.00779 | S25: -0.0016 | T25: -0.0016
B26: 0.0966711 | C26: 0.03524 | D26: -0.04465177056 | E26: 0.0015715 | F26: 156.5806411 | G26: -0.0891928 | H26: -0.2029823 | I26: 9.941E-09 | J26: 0.0967 | K26: 0.0967 | M26: 55.1% | N26: 5.470 | O26: 0.092 | P26: 55.1% | Q26: -0.00584 | R26: 0.00584 | S26: -0.0020 | T26: -0.0020
B27: 0.1527695 | C27: 0.04404 | D27: -0.05332898291 | E27: 0.0023439 | F27: 156.579096 | G27: -0.1064515325 | H27: -0.2486677 | I27: 9.500E-09 | J27: 0.1528 | K27: 0.1528 | M27: 68.8% | N27: 6.835 | O27: 0.148 | P27: 68.8% | Q27: -0.00468 | R27: 0.00468 | S27: 0.0000 | T27: 0.0000
B28: 0.2177120 | C28: 0.05282 | D28: -0.0605328019 | E28: 0.0031883 | F28: 156.5774075 | G28: -0.1207288065 | H28: -0.2913233 | I28: 9.708E-09 | J28: 0.2177 | K28: 0.2177 | M28: 82.5% | N28: 8.198 | O28: 0.213 | P28: 82.5% | Q28: -0.00390 | R28: 0.00390 | S28: -0.0011 | T28: -0.0011
B29: 0.2944276 | C29: 0.06159 | D29: -0.06586473373 | E29: 0.0040415 | F29: 156.575701 | G29: -0.1312316166 | H29: -0.3301787 | J29: 0.2944 | K29: 0.2944 | M29: 96.2% | N29: 9.560 | O29: 0.289 | P29: 96.2% | Q29: -0.00334 | R29: 0.00334 | S29: -0.0023 | T29: -0.0023
N44: [2] Optical Shop Testing Edited by Daniel Malacara, Wiley and Sons, 1978, Appendix 1 page 479, 482

Sheet crossover
B3: Diameter | C3: R | D3: 2R | E3: max pixel width | F3: width pixel center | G3: Slit to Image Plane | H3: ImagJ input | K3: k=pixels/ inch | L3: K
B4: =mask!C16 -> 19.868 | C4: =mask!C5 -> 155.2200 | D4: =C4*2 -> 310.44 | E4: =input!D11 -> 3264 | F4: =E4/2 -> 1632 | G4: =input!D9 -> 3.2000 | H4: =$F$4+H29*$K$4 -> 56.71750 | K4: =input!D10 -> 4771 | L4: =input!D4 -> -1
B5: zones % | C5: h | D5: Z Foucault Moving | E5: z (slump) | H5: =$F$4+H28*$K$4 -> 241.48391 | I5: Sixtests Ym | J5: Sixtests source distance w/t l | K5: Sixtests offset X
B6: =C6/($B$4/2) -> 0.0% | C6: 0.00000 | D6: 0.0000 | H6: =$F$4+H27*$K$4 -> 444.64453
B7: 13.8% | C7: =mask!E20 -> 1.368744 | D7: =-$L$4*C7^2/$C$4/(1+SQRT(1-(1+$L$4)*C7^2/$C$4^2)) -> 0.0060 | E7: =C7^2/$C$4/(1+SQRT(1-(1+$L$4)*C7^2/$C$4^2)) -> 0.0060349 | H7: =$F$4+H26*$K$4 -> 663.47095 | I7: =(H10-H12)/2/$K$4 -> -0.0524081 | J7: =C4+F21 -> 156.583784 | K7: =E21 -> 4.56378413
B8: 27.5% | C8: =mask!E21 -> 2.736169 | D8: 0.0241 | E8: =C8^2/$C$4/(1+SQRT(1-(1+$L$4)*C8^2/$C$4^2)) -> 0.0241162 | H8: =$F$4+H25*$K$4 -> 894.58457 | I8: =(H9-H13)/2/$K$4 -> -0.1041219 | M8: =IF(I7>I8,0,1) -> 0
B9: 41.3% | C9: =mask!E22 -> 4.103959 | D9: 0.0543 | E9: 0.0542536 | H9: =$F$4+H24*$K$4 -> 1135.23455 | I9: =(H8-H14)/2/$K$4 -> -0.1545620 | M9: =IF(I8>I9,0,1) -> 0
B10: 55.1% | C10: =mask!E23 -> 5.469795 | D10: 0.0964 | E10: 0.0963750 | H10: =$F$4+H23*$K$4 -> 1381.96085 | I10: =(H7-H15)/2/$K$4 -> -0.2030034 | M10: =IF(I9>I10,0,1) -> 0
B11: 68.8% | C11: =mask!E24 -> 6.835363 | D11: 0.1505 | E11: 0.1505031 | H11: =F4 -> 1632.00000 | I11: =(H6-H16)/2/$K$4 -> -0.2488693 | M11: 0
B12: 82.5% | C12: =mask!E25 -> 8.198351 | D12: 0.2165 | E12: 0.2165087 | H12: =$F$4-H23*$K$4 -> 1882.03915 | I12: =(H5-H17)/2/$K$4 -> -0.2914517 | M12: 0
B13: 96.2% | C13: =mask!E26 -> 9.560445 | D13: 0.2944 | E13: 0.2944276 | H13: 2128.76545 | I13: =(H4-H18)/2/$K$4 -> -0.3301787 | M13: 0
B14: 100.0% | C14: =mask!E27 -> 9.934000 | D14: 0.31789 | H14: 2369.41543 | K14: Ray Crossings | M14: =SUM(M8:M13) -> 0
H15: 2600.52905
H16: 2819.35547
H17: 3022.51609
H18: 3207.28250
D20: simulate ctr s | E20: q w/t n | F20: set simulated l | G20: solver zero
E21: =F21+$G$4 -> 4.56378 | F21: 1.36378 | G21: =($E$4-120)/2/$K$4+$H$29 -> -0.0007
B22: z | C22: z' | D22: e | E22: c | F22: N | G22: Yn | H22: Yz
B23: =E7 -> 0.0060349 | C23: =C7/($C$4-B23*(1+$L$4)) -> 0.00882 | D23: =-($F$21+$C$4)*C23+B23*C23+C7 -> -0.01197275952 | E23: =-D23*C23/(1+C23^2) -> 0.0001056 | F23: =$F$21-2*E23+$C$4 -> 156.583573 | G23: =-2*E23/C23 -> -0.02394365721 | H23: =G23-(C7-G23)*($E$21-F23+$C$4)/(F23-B23) -> -0.05241
B24: =E8 -> 0.0241162 | C24: 0.01763 | D24: -0.02361524011 | E24: 0.0004162 | F24: 156.582952 | G24: -0.04721580861 | H24: =G24-(C8-G24)*($E$21-F24+$C$4)/(F24-B24) -> -0.10412
B25: 0.0542536 | C25: 0.02644 | D25: -0.03462349647 | E25: 0.0009148 | F25: 156.581955 | G25: -0.06919861939 | H25: -0.15456
B26: 0.0963750 | C26: 0.03524 | D26: -0.04466220673 | E26: 0.0015719 | F26: 156.580640 | G26: -0.08921362924 | H26: -0.20300
B27: 0.1505031 | C27: 0.04404 | D27: -0.05342878587 | E27: 0.0023483 | F27: 156.579088 | G27: -0.1066507521 | H27: -0.24887
B28: 0.2165087 | C28: 0.05282 | D28: -0.06059635795 | E28: 0.0031917 | F28: 156.5774008 | G28: -0.120855565 | H28: -0.29145
B29: 0.2944276 | C29: 0.06159 | D29: -0.06586473373 | E29: 0.0040415 | F29: 156.575701 | G29: -0.1312316166 | H29: -0.33018
